[Event "Late-Titled-Tuesday-Blitz-June-18-2024"]
[Site "Chess.com"]
[Date "2024.06.18"]
[Round "2"]
[White "Kombinator01"]
[Black "TOCANTINS_TO"]
[Result "1-0"]
[WhiteElo "2435"]
[BlackElo "2006"]
[TimeControl "180+1"]
[EndTime "14:18:06 PDT"]
[Termination "Kombinator01 won by resignation"]

1. d4 {[%clk 0:03:00.9]} 1... Nf6 {[%clk 0:02:59.1]} 2. Bf4 {[%clk 0:03:01]}
2... e6 {[%clk 0:02:58.9]} 3. e3 {[%clk 0:03:01.1]} 3... d5 {[%clk 0:02:59]} 4.
Nf3 {[%clk 0:02:59.7]} 4... a6 {[%clk 0:02:56.8]} 5. Nbd2 {[%clk 0:02:59.7]}
5... c5 {[%clk 0:02:57]} 6. c3 {[%clk 0:02:59.5]} 6... b5 {[%clk 0:02:56.7]} 7.
Bd3 {[%clk 0:02:59.5]} 7... Bb7 {[%clk 0:02:55]} 8. O-O {[%clk 0:02:59.1]} 8...
Bd6 {[%clk 0:02:54.4]} 9. Ne5 {[%clk 0:02:57.3]} 9... Nc6 {[%clk 0:02:50.1]} 10.
Ndf3 {[%clk 0:02:56.5]} 10... O-O {[%clk 0:02:38.2]} 11. Bc2 {[%clk 0:02:54.1]}
11... b4 {[%clk 0:02:30.2]} 12. c4 {[%clk 0:02:41.9]} 12... cxd4 {[%clk
0:02:22.8]} 13. Nxc6 {[%clk 0:02:40.3]} 13... Bxc6 {[%clk 0:02:20.9]} 14. Bxd6
{[%clk 0:02:39.6]} 14... Qxd6 {[%clk 0:02:19.7]} 15. Qxd4 {[%clk 0:02:40]} 15...
Rfd8 {[%clk 0:02:11.3]} 16. Rfd1 {[%clk 0:02:37]} 16... Qc7 {[%clk 0:01:43.2]}
17. Bb3 {[%clk 0:02:20.4]} 17... Qb7 {[%clk 0:01:12.7]} 18. Ne5 {[%clk
0:02:13.8]} 18... Be8 {[%clk 0:00:57.8]} 19. c5 {[%clk 0:02:03.4]} 19... a5
{[%clk 0:00:55.5]} 20. a4 {[%clk 0:01:53]} 20... Rac8 {[%clk 0:00:53.3]} 21.
Rac1 {[%clk 0:01:52.4]} 21... Bc6 {[%clk 0:00:36.9]} 22. h3 {[%clk 0:01:45]}
22... Nd7 {[%clk 0:00:37]} 23. Bc2 {[%clk 0:01:41.8]} 23... Nxe5 {[%clk
0:00:36.1]} 24. Qxe5 {[%clk 0:01:42.7]} 24... Qc7 {[%clk 0:00:26.2]} 25. Qxc7
{[%clk 0:01:39.9]} 25... Rxc7 {[%clk 0:00:25.9]} 26. b3 {[%clk 0:01:37.2]} 26...
Rdc8 {[%clk 0:00:26]} 27. Bd3 {[%clk 0:01:37.8]} 27... Bb7 {[%clk 0:00:22.5]}
28. Bb5 {[%clk 0:01:29.8]} 28... Rxc5 {[%clk 0:00:22.5]} 29. Rxc5 {[%clk
0:01:30.7]} 29... Rxc5 {[%clk 0:00:23]} 30. e4 {[%clk 0:01:31.6]} 30... Kf8
{[%clk 0:00:22.2]} 31. Kh2 {[%clk 0:01:30.6]} 31... Ke7 {[%clk 0:00:22.1]} 32.
Kg3 {[%clk 0:01:31.1]} 32... dxe4 {[%clk 0:00:22.3]} 33. Rd7+ {[%clk 0:01:30.8]}
33... Kf6 {[%clk 0:00:21.6]} 34. Rxb7 {[%clk 0:01:31.7]} 34... Rc3+ {[%clk
0:00:21.6]} 35. Kf4 {[%clk 0:01:30.9]} 35... Rxb3 {[%clk 0:00:21.4]} 36. g4
{[%clk 0:01:24.2]} 36... g5+ {[%clk 0:00:21.1]} 37. Kxe4 {[%clk 0:01:24.2]}
37... Rxh3 {[%clk 0:00:19.4]} 38. Be8 {[%clk 0:01:24.8]} 38... b3 {[%clk
0:00:15.7]} 39. Rxf7+ {[%clk 0:01:25.2]} 39... Kg6 {[%clk 0:00:15]} 40. Rb7+
{[%clk 0:01:22.1]} 40... Kh6 {[%clk 0:00:12.8]} 41. Bd7 {[%clk 0:01:20.6]} 41...
Rc3 {[%clk 0:00:10.6]} 42. Bxe6 {[%clk 0:01:20.2]} 1-0

[Event "Late-Titled-Tuesday-Blitz-June-18-2024"]
[Site "Chess.com"]
[Date "2024.06.18"]
[Round "2"]
[White "crazy_but_lazy"]
[Black "maurovargas01"]
[Result "1-0"]
[WhiteElo "2659"]
[BlackElo "1958"]
[TimeControl "180+1"]
[EndTime "14:18:10 PDT"]
[Termination "crazy_but_lazy won on time"]

1. Nf3 {[%clk 0:03:00.9]} 1... c6 {[%clk 0:02:54.7]} 2. c4 {[%clk 0:03:00.1]}
2... e6 {[%clk 0:02:53.1]} 3. e3 {[%clk 0:02:58.1]} 3... d5 {[%clk 0:02:51.6]}
4. Nc3 {[%clk 0:02:56]} 4... Bb4 {[%clk 0:02:40.1]} 5. Qc2 {[%clk 0:02:54.7]}
5... f5 {[%clk 0:02:34.7]} 6. b3 {[%clk 0:02:54.1]} 6... Nf6 {[%clk 0:02:17.3]}
7. Bb2 {[%clk 0:02:54]} 7... O-O {[%clk 0:02:16.6]} 8. Be2 {[%clk 0:02:51.4]}
8... Nbd7 {[%clk 0:02:14.4]} 9. O-O {[%clk 0:02:51.5]} 9... Ne4 {[%clk
0:02:12.5]} 10. Nxe4 {[%clk 0:02:45.7]} 10... fxe4 {[%clk 0:02:11.4]} 11. Ne5
{[%clk 0:02:46.1]} 11... Bd6 {[%clk 0:01:59.4]} 12. Nxd7 {[%clk 0:02:23.3]}
12... Bxd7 {[%clk 0:01:57.9]} 13. d3 {[%clk 0:02:22.8]} 13... exd3 {[%clk
0:01:43.5]} 14. Bxd3 {[%clk 0:02:23.7]} 14... Qh4 {[%clk 0:01:40.2]} 15. g3
{[%clk 0:02:23.9]} 15... Qh3 {[%clk 0:01:36.7]} 16. f4 {[%clk 0:01:58.9]} 16...
Rae8 {[%clk 0:01:30.6]} 17. Qg2 {[%clk 0:01:55]} 17... Qh6 {[%clk 0:01:16.5]}
18. e4 {[%clk 0:01:40.4]} 18... Bc5+ {[%clk 0:01:12.2]} 19. Kh1 {[%clk
0:01:40.7]} 19... Rf7 {[%clk 0:00:38.8]} 20. Rad1 {[%clk 0:01:35.9]} 20... e5
{[%clk 0:00:33.3]} 21. f5 {[%clk 0:01:36.2]} 21... dxe4 {[%clk 0:00:27.3]} 22.
Bxe4 {[%clk 0:01:34.7]} 22... Qg5 {[%clk 0:00:11.7]} 23. Bc1 {[%clk 0:01:27]}
23... Qh5 {[%clk 0:00:10.1]} 24. g4 {[%clk 0:01:27.2]} 24... Qh4 {[%clk
0:00:06.9]} 25. Rd3 {[%clk 0:01:27.5]} 25... g6 {[%clk 0:00:04.2]} 26. fxg6
{[%clk 0:00:53]} 26... hxg6 {[%clk 0:00:03.1]} 27. Rxf7 {[%clk 0:00:51.5]} 27...
Kxf7 {[%clk 0:00:02.3]} 28. Rxd7+ {[%clk 0:00:52.1]} 1-0

[Event "Late-Titled-Tuesday-Blitz-June-18-2024"]
[Site "Chess.com"]
[Date "2024.06.18"]
[Round "2"]
[White "NowInChess"]
[Black "maksimys18"]
[Result "0-1"]
[WhiteElo "2236"]
[BlackElo "2493"]
[TimeControl "180+1"]
[EndTime "14:18:10 PDT"]
[Termination "maksimys18 won on time"]

1. e4 {[%clk 0:03:00.9]} 1... e6 {[%clk 0:02:49.7]} 2. d3 {[%clk 0:03:00.7]}
2... c5 {[%clk 0:02:49.2]} 3. g3 {[%clk 0:03:00]} 3... Nc6 {[%clk 0:02:49.6]} 4.
Bg2 {[%clk 0:03:00.2]} 4... d6 {[%clk 0:02:49.3]} 5. f4 {[%clk 0:03:00.5]} 5...
g6 {[%clk 0:02:49.6]} 6. Nf3 {[%clk 0:03:00.9]} 6... Bg7 {[%clk 0:02:50.1]} 7.
O-O {[%clk 0:03:00.4]} 7... Nge7 {[%clk 0:02:50.6]} 8. c3 {[%clk 0:03:00.4]}
8... O-O {[%clk 0:02:51]} 9. Be3 {[%clk 0:03:00.5]} 9... b5 {[%clk 0:02:51.1]}
10. d4 {[%clk 0:02:52.6]} 10... cxd4 {[%clk 0:02:49.4]} 11. cxd4 {[%clk
0:02:53.5]} 11... Bb7 {[%clk 0:02:49.2]} 12. Nbd2 {[%clk 0:02:45.1]} 12... Qb6
{[%clk 0:02:46.4]} 13. Nb3 {[%clk 0:02:27.8]} 13... Rad8 {[%clk 0:02:45.2]} 14.
Qd2 {[%clk 0:02:22.8]} 14... d5 {[%clk 0:02:44.7]} 15. e5 {[%clk 0:02:22.2]}
15... Nf5 {[%clk 0:02:44.6]} 16. Bf2 {[%clk 0:02:22]} 16... a5 {[%clk
0:02:44.2]} 17. g4 {[%clk 0:02:19.1]} 17... Nh6 {[%clk 0:02:41]} 18. h3 {[%clk
0:02:11.8]} 18... b4 {[%clk 0:02:40.7]} 19. Nc5 {[%clk 0:02:10.2]} 19... Ba6
{[%clk 0:02:40.5]} 20. Nxa6 {[%clk 0:02:07.5]} 20... Qxa6 {[%clk 0:02:40.3]} 21.
Rac1 {[%clk 0:02:06.1]} 21... Rc8 {[%clk 0:02:34.5]} 22. Be3 {[%clk 0:01:57.5]}
22... Kh8 {[%clk 0:02:32.1]} 23. f5 {[%clk 0:01:55.9]} 23... Ng8 {[%clk
0:02:28.6]} 24. f6 {[%clk 0:01:54.2]} 24... Nxf6 {[%clk 0:02:28.6]} 25. exf6
{[%clk 0:01:54.9]} 25... Bxf6 {[%clk 0:02:29.1]} 26. Bh6 {[%clk 0:01:36]} 26...
Bg7 {[%clk 0:02:22.5]} 27. Bxg7+ {[%clk 0:01:34.6]} 27... Kxg7 {[%clk
0:02:23.4]} 28. g5 {[%clk 0:01:28.2]} 28... Ne7 {[%clk 0:02:22.2]} 29. Qf4
{[%clk 0:01:23]} 29... Nf5 {[%clk 0:02:21.2]} 30. Ne5 {[%clk 0:01:16.1]} 30...
Qe2 {[%clk 0:02:16.9]} 31. Rf2 {[%clk 0:00:53.4]} 31... Rxc1+ {[%clk 0:02:15.6]}
32. Qxc1 {[%clk 0:00:52.6]} 32... Qe3 {[%clk 0:02:15.9]} 33. Qxe3 {[%clk
0:00:50]} 33... Nxe3 {[%clk 0:02:15.6]} 34. Bf1 {[%clk 0:00:45.7]} 34... Nf5
{[%clk 0:02:14.3]} 35. Rd2 {[%clk 0:00:37.7]} 35... Rc8 {[%clk 0:02:13.8]} 36.
Kf2 {[%clk 0:00:24.5]} 36... h6 {[%clk 0:02:13]} 37. gxh6+ {[%clk 0:00:22.8]}
37... Nxh6 {[%clk 0:02:13.9]} 38. Bd3 {[%clk 0:00:22.1]} 38... f6 {[%clk
0:02:12.9]} 39. Ng4 {[%clk 0:00:19.8]} 39... Nf7 {[%clk 0:02:09.4]} 40. Ke3
{[%clk 0:00:19.7]} 40... Nd6 {[%clk 0:02:08.6]} 41. Rf2 {[%clk 0:00:18]} 41...
f5 {[%clk 0:02:07.9]} 42. Ne5 {[%clk 0:00:17.5]} 42... Rh8 {[%clk 0:02:03.7]}
43. Rf3 {[%clk 0:00:12.4]} 43... Kf6 {[%clk 0:02:03.2]} 44. Rg3 {[%clk
0:00:12.1]} 44... g5 {[%clk 0:02:03.3]} 45. Nd7+ {[%clk 0:00:11.4]} 45... Ke7
{[%clk 0:02:02.3]} 46. Ne5 {[%clk 0:00:09.5]} 46... f4+ {[%clk 0:02:02.1]} 47.
Kf3 {[%clk 0:00:08.8]} 47... fxg3 {[%clk 0:01:58.8]} 48. Ng6+ {[%clk 0:00:09]}
48... Kf6 {[%clk 0:01:58.6]} 49. Nxh8 {[%clk 0:00:09.4]} 49... Nf5 {[%clk
0:01:53]} 50. Bxf5 {[%clk 0:00:06.2]} 50... exf5 {[%clk 0:01:52.6]} 51. Kxg3
{[%clk 0:00:06.4]} 51... Kg7 {[%clk 0:01:52.6]} 52. h4 {[%clk 0:00:03.1]} 52...
g4 {[%clk 0:01:51.7]} 53. Kf4 {[%clk 0:00:03]} 53... Kxh8 {[%clk 0:01:51.6]} 54.
Ke5 {[%clk 0:00:01]} 54... g3 {[%clk 0:01:50.7]} 55. Kxd5 {[%clk 0:00:01]} 55...
g2 {[%clk 0:01:51.6]} 0-1

[Event "Late-Titled-Tuesday-Blitz-June-18-2024"]
[Site "Chess.com"]
[Date "2024.06.18"]
[Round "2"]
[White "Rutricks"]
[Black "zsizsi99"]
[Result "1-0"]
[WhiteElo "2813"]
[BlackElo "2558"]
[TimeControl "180+1"]
[EndTime "14:18:13 PDT"]
[Termination "Rutricks won by resignation"]

1. c4 {[%clk 0:02:58.9]} 1... c5 {[%clk 0:02:59.2]} 2. Nc3 {[%clk 0:02:59.1]}
2... Nc6 {[%clk 0:02:58.2]} 3. g3 {[%clk 0:02:58.8]} 3... g6 {[%clk 0:02:58]} 4.
Bg2 {[%clk 0:02:59.4]} 4... Bg7 {[%clk 0:02:58.7]} 5. e3 {[%clk 0:02:59.8]} 5...
e5 {[%clk 0:02:55.8]} 6. Nge2 {[%clk 0:02:59.8]} 6... Nge7 {[%clk 0:02:56.5]} 7.
a3 {[%clk 0:02:49.7]} 7... a5 {[%clk 0:02:55.7]} 8. h4 {[%clk 0:02:45.3]} 8...
h5 {[%clk 0:02:55.2]} 9. Nb5 {[%clk 0:02:41.1]} 9... d6 {[%clk 0:02:54.3]} 10.
d4 {[%clk 0:02:41.8]} 10... O-O {[%clk 0:02:43.9]} 11. d5 {[%clk 0:02:39.2]}
11... Na7 {[%clk 0:02:33.3]} 12. Nbc3 {[%clk 0:02:29.5]} 12... Bd7 {[%clk
0:02:24.2]} 13. a4 {[%clk 0:02:29.2]} 13... Nf5 {[%clk 0:01:47.2]} 14. Qc2
{[%clk 0:02:18.4]} 14... Nc8 {[%clk 0:01:42.7]} 15. Bd2 {[%clk 0:02:14.1]} 15...
Nb6 {[%clk 0:01:42.4]} 16. b3 {[%clk 0:02:13.9]} 16... Bc8 {[%clk 0:01:38.1]}
17. Ne4 {[%clk 0:02:12.2]} 17... Nd7 {[%clk 0:01:35.2]} 18. Bc3 {[%clk
0:02:06.1]} 18... Nf6 {[%clk 0:01:30.9]} 19. Ng5 {[%clk 0:02:02.1]} 19... Nh7
{[%clk 0:01:26.4]} 20. Ne4 {[%clk 0:02:01.8]} 20... Nf6 {[%clk 0:01:25.1]} 21.
Nxf6+ {[%clk 0:01:58.3]} 21... Qxf6 {[%clk 0:01:18.8]} 22. Bb2 {[%clk
0:01:57.7]} 22... Bd7 {[%clk 0:01:10.7]} 23. Nc3 {[%clk 0:01:58]} 23... Qe7
{[%clk 0:01:02.7]} 24. O-O-O {[%clk 0:01:57.9]} 24... Bh6 {[%clk 0:00:30.9]} 25.
Kb1 {[%clk 0:01:57]} 25... Bxe3 {[%clk 0:00:17.1]} 26. fxe3 {[%clk 0:01:57.9]}
26... Nxe3 {[%clk 0:00:17.3]} 27. Qf2 {[%clk 0:01:58.6]} 27... Nf5 {[%clk
0:00:10.1]} 28. Ne4 {[%clk 0:01:57.6]} 28... Nd4 {[%clk 0:00:10.8]} 29. Qf6
{[%clk 0:01:55.9]} 29... Rfe8 {[%clk 0:00:04.8]} 30. Qxd6 {[%clk 0:01:42.6]}
30... Bf5 {[%clk 0:00:04]} 31. Qxe7 {[%clk 0:01:33.2]} 31... Rxe7 {[%clk
0:00:04.6]} 32. Ka2 {[%clk 0:01:33.7]} 32... Rc8 {[%clk 0:00:04.4]} 33. Nd6
{[%clk 0:01:15]} 33... Rd8 {[%clk 0:00:04.5]} 34. Nxf5 {[%clk 0:01:09.3]} 34...
Nxf5 {[%clk 0:00:05.2]} 35. Rhe1 {[%clk 0:01:04.2]} 35... Nxg3 {[%clk
0:00:01.7]} 36. Bxe5 {[%clk 0:01:02.2]} 36... Nf5 {[%clk 0:00:01]} 37. Bf6
{[%clk 0:01:01.8]} 37... Rxe1 {[%clk 0:00:01.6]} 38. Rxe1 {[%clk 0:01:02.6]}
38... Rc8 {[%clk 0:00:01.6]} 39. Bh3 {[%clk 0:01:02.3]} 39... Nd6 {[%clk
0:00:02.1]} 40. Bxc8 {[%clk 0:01:02.3]} 1-0

[Event "Late-Titled-Tuesday-Blitz-June-18-2024"]
[Site "Chess.com"]
[Date "2024.06.18"]
[Round "2"]
[White "Skatchkov_V"]
[Black "Javokhir_Sindarov05"]
[Result "0-1"]
[WhiteElo "2637"]
[BlackElo "3065"]
[TimeControl "180+1"]
[EndTime "14:18:15 PDT"]
[Termination "Javokhir_Sindarov05 won on time"]

1. d4 {[%clk 0:03:00.9]} 1... Nf6 {[%clk 0:03:00.1]} 2. c4 {[%clk 0:02:58.9]}
2... g6 {[%clk 0:02:58.7]} 3. Nc3 {[%clk 0:02:58.4]} 3... Bg7 {[%clk 0:02:59.4]}
4. e4 {[%clk 0:02:57.8]} 4... d6 {[%clk 0:03:00]} 5. h3 {[%clk 0:02:57.8]} 5...
O-O {[%clk 0:02:59.6]} 6. Bg5 {[%clk 0:02:58.3]} 6... c5 {[%clk 0:02:59.1]} 7.
d5 {[%clk 0:02:57.1]} 7... e6 {[%clk 0:02:58.6]} 8. Bd3 {[%clk 0:02:55]} 8...
exd5 {[%clk 0:02:58.9]} 9. exd5 {[%clk 0:02:55.9]} 9... Nbd7 {[%clk 0:02:57.6]}
10. Nf3 {[%clk 0:02:55.8]} 10... Re8+ {[%clk 0:02:57.8]} 11. Be3 {[%clk
0:02:56.4]} 11... Rxe3+ {[%clk 0:02:31.1]} 12. fxe3 {[%clk 0:02:57.3]} 12... Qe7
{[%clk 0:02:31.8]} 13. O-O {[%clk 0:02:56.6]} 13... Qxe3+ {[%clk 0:02:08.9]} 14.
Rf2 {[%clk 0:02:21.9]} 14... Nh5 {[%clk 0:02:01.3]} 15. Qe2 {[%clk 0:01:46.7]}
15... Qxe2 {[%clk 0:02:01.4]} 16. Rxe2 {[%clk 0:01:45.4]} 16... Ne5 {[%clk
0:02:02]} 17. Nxe5 {[%clk 0:00:54.2]} 17... Bxe5 {[%clk 0:02:02.9]} 18. Rxe5
{[%clk 0:00:17.8]} 18... dxe5 {[%clk 0:02:03.8]} 19. Re1 {[%clk 0:00:18]} 19...
f6 {[%clk 0:01:46.3]} 20. Ne4 {[%clk 0:00:17.5]} 20... b6 {[%clk 0:01:47]} 21.
Be2 {[%clk 0:00:12.8]} 21... Bf5 {[%clk 0:01:33.3]} 22. Bxh5 {[%clk 0:00:08.8]}
22... Bxe4 {[%clk 0:01:33.9]} 23. Rxe4 {[%clk 0:00:09.4]} 23... gxh5 {[%clk
0:01:34.5]} 24. Rh4 {[%clk 0:00:10.3]} 24... Rb8 {[%clk 0:01:19.2]} 25. a4
{[%clk 0:00:08.9]} 25... a6 {[%clk 0:01:09.9]} 26. Rxh5 {[%clk 0:00:03.3]} 26...
b5 {[%clk 0:01:10.5]} 27. cxb5 {[%clk 0:00:03.4]} 27... axb5 {[%clk 0:01:11.4]}
28. axb5 {[%clk 0:00:01.7]} 28... Rxb5 {[%clk 0:01:11.7]} 29. Rh4 {[%clk
0:00:02.4]} 29... Rxb2 {[%clk 0:01:07.8]} 30. Rc4 {[%clk 0:00:02.6]} 30... Rb5
{[%clk 0:01:08.3]} 31. Kf2 {[%clk 0:00:02.7]} 31... Kf7 {[%clk 0:01:06.4]} 32.
Ke3 {[%clk 0:00:02.5]} 32... Ke7 {[%clk 0:01:02.7]} 33. Ke4 {[%clk 0:00:02.8]}
33... Rb4 {[%clk 0:01:02.2]} 0-1

[Event "Late-Titled-Tuesday-Blitz-June-18-2024"]
[Site "Chess.com"]
[Date "2024.06.18"]
[Round "2"]
[White "Viktor_Poddubnyi"]
[Black "MathiasWomacka"]
[Result "1-0"]
[WhiteElo "2342"]
[BlackElo "2511"]
[TimeControl "180+1"]
[EndTime "14:18:18 PDT"]
[Termination "Viktor_Poddubnyi won by resignation"]

1. e4 {[%clk 0:03:00]} 1... c5 {[%clk 0:02:59.3]} 2. Nf3 {[%clk 0:02:59.7]} 2...
d6 {[%clk 0:02:59.8]} 3. d4 {[%clk 0:03:00]} 3... cxd4 {[%clk 0:03:00.7]} 4.
Nxd4 {[%clk 0:03:00.8]} 4... Nf6 {[%clk 0:03:00.5]} 5. Nc3 {[%clk 0:03:01.1]}
5... a6 {[%clk 0:03:00.8]} 6. Bg5 {[%clk 0:03:01.5]} 6... e6 {[%clk 0:03:01]} 7.
Qf3 {[%clk 0:03:01.7]} 7... Be7 {[%clk 0:02:59.3]} 8. O-O-O {[%clk 0:03:01]}
8... h6 {[%clk 0:02:58.3]} 9. Bd2 {[%clk 0:02:54.6]} 9... Nbd7 {[%clk 0:02:40]}
10. g4 {[%clk 0:02:54.5]} 10... Ne5 {[%clk 0:02:22.4]} 11. Qg3 {[%clk
0:02:54.1]} 11... g5 {[%clk 0:02:22]} 12. h4 {[%clk 0:02:09]} 12... Rg8 {[%clk
0:02:19.9]} 13. hxg5 {[%clk 0:02:06.3]} 13... hxg5 {[%clk 0:02:20.8]} 14. f4
{[%clk 0:01:42.1]} 14... gxf4 {[%clk 0:02:21.7]} 15. Bxf4 {[%clk 0:01:41.6]}
15... Qc7 {[%clk 0:02:19.6]} 16. g5 {[%clk 0:01:33.3]} 16... Nfd7 {[%clk
0:01:56.3]} 17. Bh3 {[%clk 0:01:02.9]} 17... Nc5 {[%clk 0:01:31.9]} 18. Nf3
{[%clk 0:00:57.8]} 18... Nxf3 {[%clk 0:01:24.9]} 19. Qxf3 {[%clk 0:00:58.7]}
19... Bd7 {[%clk 0:01:22.4]} 20. Qg3 {[%clk 0:00:36]} 20... Bc6 {[%clk
0:01:20.3]} 21. Bxd6 {[%clk 0:00:25.4]} 21... Bxd6 {[%clk 0:01:17.9]} 22. Rxd6
{[%clk 0:00:25.7]} 22... Rd8 {[%clk 0:00:55]} 23. Rxd8+ {[%clk 0:00:18.8]} 23...
Qxd8 {[%clk 0:00:55.9]} 24. Rg1 {[%clk 0:00:15.9]} 24... Nxe4 {[%clk 0:00:45.3]}
25. Nxe4 {[%clk 0:00:15.8]} 25... Bxe4 {[%clk 0:00:46.2]} 26. Qe5 {[%clk
0:00:15.3]} 26... Qd5 {[%clk 0:00:43]} 27. Qb8+ {[%clk 0:00:12.8]} 27... Kd7
{[%clk 0:00:39.6]} 28. Qxg8 {[%clk 0:00:11.6]} 28... Bg6 {[%clk 0:00:39.4]} 29.
Rd1 {[%clk 0:00:11.2]} 1-0

[Event "Late-Titled-Tuesday-Blitz-June-18-2024"]
[Site "Chess.com"]
[Date "2024.06.18"]
[Round "2"]
[White "2346PL"]
[Black "insatiable27"]
[Result "1-0"]
[WhiteElo "2537"]
[BlackElo "2345"]
[TimeControl "180+1"]
[EndTime "14:18:22 PDT"]
[Termination "2346PL won by resignation"]

1. Nf3 {[%clk 0:03:00.9]} 1... d5 {[%clk 0:02:59.3]} 2. g3 {[%clk 0:03:00.6]}
2... Nf6 {[%clk 0:02:58.8]} 3. Bg2 {[%clk 0:03:01.1]} 3... e6 {[%clk 0:02:58.9]}
4. O-O {[%clk 0:03:00.7]} 4... Bd6 {[%clk 0:02:59.4]} 5. d4 {[%clk 0:03:00.9]}
5... O-O {[%clk 0:02:59.5]} 6. c4 {[%clk 0:03:01.5]} 6... h6 {[%clk 0:02:59.8]}
7. Nc3 {[%clk 0:02:57.4]} 7... Nc6 {[%clk 0:02:59.6]} 8. b3 {[%clk 0:02:42.7]}
8... Re8 {[%clk 0:02:59.5]} 9. Bb2 {[%clk 0:02:40]} 9... dxc4 {[%clk 0:02:59.5]}
10. bxc4 {[%clk 0:02:39.5]} 10... e5 {[%clk 0:03:00.2]} 11. d5 {[%clk
0:02:38.3]} 11... Na5 {[%clk 0:02:57.2]} 12. Qa4 {[%clk 0:02:36]} 12... b6
{[%clk 0:02:56.3]} 13. Nd2 {[%clk 0:02:29.2]} 13... Bb7 {[%clk 0:02:46.5]} 14.
e4 {[%clk 0:02:28.1]} 14... Qd7 {[%clk 0:02:41.4]} 15. Qc2 {[%clk 0:02:19.2]}
15... Ba6 {[%clk 0:02:38.3]} 16. Nd1 {[%clk 0:02:11.7]} 16... Rac8 {[%clk
0:02:30.2]} 17. Ne3 {[%clk 0:02:11.1]} 17... c6 {[%clk 0:02:23.4]} 18. Rfd1
{[%clk 0:02:04.4]} 18... cxd5 {[%clk 0:02:20.8]} 19. exd5 {[%clk 0:02:04.2]}
19... Qc7 {[%clk 0:02:17.2]} 20. Bf1 {[%clk 0:02:00.4]} 20... b5 {[%clk
0:02:00.9]} 21. Rac1 {[%clk 0:01:44.5]} 21... bxc4 {[%clk 0:01:58.6]} 22. Qa4
{[%clk 0:01:43.8]} 22... Qb6 {[%clk 0:01:53.1]} 23. Bc3 {[%clk 0:01:42.4]} 23...
Rc5 {[%clk 0:01:15.3]} 24. Ne4 {[%clk 0:01:26.4]} 24... Nxe4 {[%clk 0:00:59.7]}
25. Qxe8+ {[%clk 0:01:26.1]} 25... Kh7 {[%clk 0:00:53.9]} 26. Bxe5 {[%clk
0:01:20.2]} 26... Rc8 {[%clk 0:00:47.7]} 27. Qxf7 {[%clk 0:01:20.2]} 27... Bxe5
{[%clk 0:00:46.9]} 28. Qf5+ {[%clk 0:01:20.2]} 28... Qg6 {[%clk 0:00:46]} 29.
Qxe5 {[%clk 0:01:20.1]} 29... Ng5 {[%clk 0:00:45.2]} 30. Bg2 {[%clk 0:01:17.9]}
30... Rf8 {[%clk 0:00:30]} 31. f4 {[%clk 0:01:12]} 31... Nf7 {[%clk 0:00:26.9]}
32. Qf5 {[%clk 0:01:10.7]} 32... Qxf5 {[%clk 0:00:24.9]} 33. Nxf5 {[%clk
0:01:10.7]} 33... Rd8 {[%clk 0:00:25.3]} 34. Be4 {[%clk 0:01:02.9]} 34... g6
{[%clk 0:00:20.6]} 35. Ne7 {[%clk 0:01:02.5]} 35... Nd6 {[%clk 0:00:20]} 36.
Bxg6+ {[%clk 0:00:57.5]} 36... Kg7 {[%clk 0:00:20.7]} 37. Bc2 {[%clk 0:00:55.3]}
37... c3 {[%clk 0:00:19.2]} 38. Nf5+ {[%clk 0:00:51.8]} 38... Nxf5 {[%clk
0:00:19.1]} 39. Bxf5 {[%clk 0:00:52.7]} 39... Kf6 {[%clk 0:00:19.3]} 40. g4
{[%clk 0:00:51.5]} 40... Bc4 {[%clk 0:00:15.5]} 41. Rxc3 {[%clk 0:00:50.5]}
41... Bxa2 {[%clk 0:00:14.7]} 42. Ra3 {[%clk 0:00:50.3]} 42... Rxd5 {[%clk
0:00:12.6]} 43. Rxd5 {[%clk 0:00:49.2]} 43... Bxd5 {[%clk 0:00:13.5]} 44. Rxa5
{[%clk 0:00:49.1]} 1-0

[Event "Late-Titled-Tuesday-Blitz-June-18-2024"]
[Site "Chess.com"]
[Date "2024.06.18"]
[Round "2"]
[White "DeTimmerman"]
[Black "Giantgoogachess"]
[Result "1-0"]
[WhiteElo "2739"]
[BlackElo "2481"]
[TimeControl "180+1"]
[EndTime "14:18:28 PDT"]
[Termination "DeTimmerman won by resignation"]

1. Nf3 {[%clk 0:03:00.1]} 1... d5 {[%clk 0:02:52.3]} 2. c4 {[%clk 0:02:59.9]}
2... c6 {[%clk 0:02:44.4]} 3. e3 {[%clk 0:02:59.5]} 3... Nf6 {[%clk 0:02:44.7]}
4. b3 {[%clk 0:02:59.1]} 4... Bf5 {[%clk 0:02:42.5]} 5. Bb2 {[%clk 0:02:59]}
5... e6 {[%clk 0:02:43.1]} 6. Nc3 {[%clk 0:02:50.9]} 6... Nbd7 {[%clk
0:02:42.4]} 7. Be2 {[%clk 0:02:50.6]} 7... h6 {[%clk 0:02:40.5]} 8. O-O {[%clk
0:02:48.9]} 8... Bd6 {[%clk 0:02:41]} 9. d4 {[%clk 0:02:48.2]} 9... O-O {[%clk
0:02:41.3]} 10. a4 {[%clk 0:02:47.7]} 10... Qe7 {[%clk 0:02:39]} 11. a5 {[%clk
0:02:46.1]} 11... Ne4 {[%clk 0:02:35.4]} 12. c5 {[%clk 0:02:41.9]} 12... Bc7
{[%clk 0:02:32]} 13. a6 {[%clk 0:02:42.4]} 13... b6 {[%clk 0:02:30.6]} 14. cxb6
{[%clk 0:02:35.3]} 14... Bxb6 {[%clk 0:02:29.4]} 15. Na4 {[%clk 0:02:31.1]}
15... Bc7 {[%clk 0:02:23.8]} 16. Rc1 {[%clk 0:02:25.7]} 16... Qd6 {[%clk
0:02:03.5]} 17. Nc5 {[%clk 0:01:40.2]} 17... Ndxc5 {[%clk 0:02:00]} 18. dxc5
{[%clk 0:01:41.1]} 18... Qe7 {[%clk 0:02:00]} 19. Nd4 {[%clk 0:01:39]} 19... Qd7
{[%clk 0:01:13.1]} 20. b4 {[%clk 0:01:37.2]} 20... Bg6 {[%clk 0:01:02.3]} 21.
Qa4 {[%clk 0:01:32.3]} 21... Be5 {[%clk 0:00:55.1]} 22. b5 {[%clk 0:01:08.2]}
22... cxb5 {[%clk 0:00:47.5]} 23. Bxb5 {[%clk 0:01:09.1]} 23... Qc7 {[%clk
0:00:44.5]} 24. f4 {[%clk 0:01:09.3]} 24... Bf6 {[%clk 0:00:39.4]} 25. Bc6
{[%clk 0:01:08.3]} 25... Nd2 {[%clk 0:00:19.2]} 26. Rf2 {[%clk 0:01:02]} 26...
Nc4 {[%clk 0:00:16.1]} 27. Bxa8 {[%clk 0:01:02]} 27... Rxa8 {[%clk 0:00:17]} 28.
Ba1 {[%clk 0:00:55.2]} 28... Qxc5 {[%clk 0:00:16.3]} 29. Qc6 {[%clk 0:00:50.7]}
29... Qxc6 {[%clk 0:00:15.3]} 30. Nxc6 {[%clk 0:00:51.6]} 30... Bxa1 {[%clk
0:00:15.1]} 31. Rxa1 {[%clk 0:00:52.5]} 31... Nxe3 {[%clk 0:00:16]} 32. Rb2
{[%clk 0:00:45.2]} 32... Nc2 {[%clk 0:00:04.5]} 33. Ra4 {[%clk 0:00:41]} 33...
f6 {[%clk 0:00:03.3]} 34. Ne7+ {[%clk 0:00:40.8]} 34... Kf7 {[%clk 0:00:03.2]}
35. Nxg6 {[%clk 0:00:41.6]} 35... Kxg6 {[%clk 0:00:03.7]} 36. Rxc2 {[%clk
0:00:41.7]} 1-0